bitfinex/quotes_BTCUSD_20260315
["timestamp","ask_amount","ask_price","bid_price","bid_amount"]
[1773584321686,0.0699741,71455.0,71445.0,0.0002]
[1773584323341,0.0713741,71456.0,71445.0,0.0002]
[1773584323342,0.0699741,71456.0,71446.0,0.0487822]
[1773584323766,0.0014,71455.0,71446.0,0.0487822]
[1773584323987,0.0014,71454.0,71446.0,0.0487822]
[1773584324390,0.0699741,71456.0,71446.0,0.0487822]
[1773584324590,0.0014,71455.0,71446.0,0.0487822]
[1773584325308,0.06997508,71454.0,71446.0,0.0487822]
[1773584326925,0.0014,71453.0,71447.0,0.0487822]
[1773584327416,0.0014,71454.0,71447.0,0.0487822]
[1773584327824,0.04468497,71467.0,71447.0,0.0487822]
[1773584328029,0.0014,71466.0,71447.0,0.0487822]
[1773584328333,0.04468497,71466.0,71447.0,0.0487822]
[1773584328492,0.0014,71465.0,71447.0,0.0487822]
[1773584329544,0.06996529,71464.0,71447.0,0.0487822]
[1773584329949,0.11465026,71464.0,71447.0,0.0487822]
[1773584331254,0.25416685,71464.0,71447.0,0.0487822]
[1773584335233,0.04854015,71463.0,71446.0,0.0002]
[1773584335774,0.20948188,71464.0,71447.0,0.06998194]
[1773584335977,0.0014,71463.0,71448.0,0.0507143]
[1773584336178,0.06996529,71464.0,71448.0,0.0507143]
[1773584336373,0.0014,71463.0,71448.0,0.0507143]
[1773584336998,0.06996529,71464.0,71449.0,0.06997998]
[1773584337200,0.0014,71463.0,71450.0,0.0507143]
[1773584339927,0.06996529,71464.0,71450.0,0.1206924]
[1773584340128,0.0014,71462.0,71450.0,0.1206924]
[1773584340330,0.06996529,71464.0,71451.0,0.0507143]
[1773584340510,0.0014,71461.0,71451.0,0.0507143]
[1773584340912,0.0014,71460.0,71451.0,0.0507143]
[1773584341467,0.0014,71459.0,71451.0,0.0507143]
[1773584341834,0.06996529,71464.0,71451.0,0.0507143]
[1773584342031,0.06996725,71462.0,71451.0,0.0507143]
[1773584342439,0.0014,71461.0,71451.0,0.0507143]
[1773584343226,0.20953283,71463.0,71451.0,0.06997749]
[1773584343439,0.06996649,71463.0,71452.0,0.0507143]
[1773584343634,0.0014,71462.0,71452.0,0.0507143]
[1773584344068,0.0014,71461.0,71453.0,0.06997606]
[1773584344369,0.0014,71462.0,71454.0,0.0507143]
[1773584344864,0.20960393,71472.0,71454.0,0.0507143]
[1773584345083,0.0014,71471.0,71454.0,0.0507143]
[1773584345363,0.20960393,71472.0,71454.0,0.0507143]
[1773584345568,0.0014,71470.0,71454.0,0.0507143]
[1773584345916,0.0014,71469.0,71454.0,0.0507143]
[1773584346364,0.00022001,71461.0,71455.0,0.0699741]
[1773584346533,0.00022001,71461.0,71453.0,0.06997606]
[1773584346534,0.00022001,71461.0,71456.0,0.0507143]
[1773584348322,0.00022001,71461.0,71456.0,0.06997266]
[1773584348554,0.00022001,71461.0,71457.0,0.0507143]
[1773584349505,0.07020517,71477.0,71457.0,0.0507143]
[1773584349685,0.06995942,71471.0,71457.0,0.0507143]
[1773584350424,0.0014,71470.0,71457.0,0.0507143]
[1773584350641,0.0699604,71469.0,71457.0,0.1216864]
[1773584351689,0.0699604,71469.0,71457.0,0.1206864]
[1773584351892,0.0014,71468.0,71458.0,0.0507143]
[1773584352298,0.0699604,71469.0,71458.0,0.0507143]
[1773584352498,0.0014,71468.0,71458.0,0.0507143]
[1773584352829,0.06996236,71467.0,71458.0,0.0507143]
[1773584353349,0.06996236,71467.0,71458.0,0.1206854]
[1773584354152,0.06996236,71467.0,71458.0,0.0507143]
[1773584355460,0.06996236,71467.0,71458.0,0.12068535]
[1773584355761,0.0014,71466.0,71458.0,0.12068535]
[1773584355961,0.06996236,71467.0,71458.0,0.12068535]
[1773584356170,0.0014,71466.0,71458.0,0.12068535]
[1773584356462,0.06996236,71467.0,71458.0,0.12068535]
[1773584356668,0.0014,71466.0,71458.0,0.12068535]
[1773584357046,0.0014,71465.0,71458.0,0.12068535]
[1773584357431,0.06995942,71472.0,71458.0,0.12068535]
[1773584357632,0.0014,71466.0,71458.0,0.12068535]
[1773584357865,0.20960041,71472.0,71458.0,0.12068535]
[1773584358071,0.14104099,71471.0,71458.0,0.12068535]
[1773584358274,0.0014,71471.0,71458.0,0.12068535]
[1773584358489,0.0014,71470.0,71458.0,0.12068535]
[1773584359004,0.06996138,71468.0,71458.0,0.12068535]
[1773584359176,0.06996138,71468.0,71458.0,0.0507143]
[1773584359499,0.0014,71467.0,71458.0,0.0507143]
[1773584359859,0.0014,71467.0,71456.0,0.06997121]
[1773584361026,0.0014,71469.0,71459.0,0.0507143]
[1773584361185,0.0014,71468.0,71459.0,0.0507143]
[1773584361784,0.0699604,71469.0,71459.0,0.0507143]
[1773584362046,0.00022001,71466.0,71459.0,0.0507143]
[1773584363329,0.00022001,71466.0,71459.0,0.12068355]
[1773584363549,0.07018351,71466.0,71459.0,0.12068355]
[1773584366084,0.00022001,71466.0,71459.0,0.12068355]
[1773584367491,0.00022001,71466.0,71459.0,0.06996925]
[1773584369228,0.00022001,71466.0,71457.0,0.06997019]
[1773584371692,0.00022001,71466.0,71459.0,0.06997019]
[1773584372513,0.07018384,71466.0,71459.0,0.06997019]
[1773584373774,0.07018384,71466.0,71457.0,0.06997215]
[1773584374802,0.11852136,71466.0,71457.0,0.06997215]
[1773584376094,0.07018384,71466.0,71452.0,0.06997704]
[1773584376326,0.11852136,71466.0,71452.0,0.06997704]
[1773584379908,0.07018384,71466.0,71452.0,0.06997704]
[1773584380821,0.07018384,71466.0,71452.0,0.07017704]
[1773584384227,0.04833752,71465.0,71452.0,0.07017704]
[1773584384802,0.06996509,71465.0,71452.0,0.07017704]
[1773584384991,0.04833752,71464.0,71452.0,0.07017704]
[1773584386197,0.06996509,71465.0,71452.0,0.07017704]
[1773584388823,0.06996509,71465.0,71453.0,0.04612492]
[1773584389228,0.06996509,71465.0,71454.0,0.06997508]
[1773584391756,0.14008229,71466.0,71454.0,0.06997508]
[1773584391960,0.21004576,71466.0,71454.0,0.06997508]
[1773584392156,0.07018348,71466.0,71454.0,0.06997508]
[1773584392649,0.21005049,71466.0,71454.0,0.06997508]
[1773584392851,0.07018348,71466.0,71454.0,0.06997508]
[1773584393253,0.21005043,71466.0,71454.0,0.06997508]
[1773584393453,0.07018348,71466.0,71454.0,0.06997508]
[1773584393978,0.21005097,71466.0,71454.0,0.06997508]
[1773584394182,0.07018348,71466.0,71454.0,0.06997508]
[1773584394582,0.21005147,71466.0,71454.0,0.06997508]
[1773584394807,0.07018348,71466.0,71454.0,0.06997508]
[1773584395166,0.21005158,71466.0,71454.0,0.06997508]
[1773584395371,0.07018348,71466.0,71454.0,0.06997508]
[1773584395812,0.21005238,71466.0,71454.0,0.06997508]
[1773584395998,0.07018348,71466.0,71454.0,0.06997508]
[1773584396499,0.11734425,71466.0,71453.0,0.0695547]
[1773584396736,0.04716077,71465.0,71453.0,0.0695547]
[1773584396910,0.04716077,71465.0,71452.0,0.0002]
[1773584397116,0.04716077,71465.0,71451.0,0.0002]
[1773584398054,0.04716077,71460.0,71447.0,0.0003646]
[1773584398353,0.04716077,71458.0,71447.0,0.0003646]
[1773584398518,0.04716077,71458.0,71452.0,0.0002]
[1773584398924,0.04716077,71458.0,71447.0,0.0003646]
[1773584399122,0.04716077,71458.0,71440.0,0.0699888]
[1773584399328,0.04721069,71458.0,71440.0,0.0699888]
[1773584400154,0.06997215,71457.0,71440.0,0.0699888]
[1773584400328,0.11713292,71457.0,71440.0,0.0699888]
[1773584404859,0.0699741,71455.0,71440.0,0.0699888]
[1773584405674,0.0699741,71455.0,71440.0,0.0701888]
[1773584409553,0.0699741,71455.0,71440.0,0.1289387]
[1773584409754,0.0699741,71455.0,71440.0,0.17782214]
[1773584409969,0.0699741,71455.0,71440.0,0.11907224]
[1773584410169,0.0699741,71455.0,71440.0,0.0701888]
[1773584411699,0.0699741,71456.0,71440.0,0.0701888]
[1773584416119,0.04716077,71455.0,71438.0,0.0002]
[1773584417738,0.04716077,71455.0,71438.0,0.07019065]
[1773584417940,0.04716077,71453.0,71438.0,0.07119065]
[1773584418224,0.0587499,71450.0,71438.0,0.07119065]
[1773584418352,0.0014,71452.0,71438.0,0.07119065]
[1773584418941,0.04856077,71452.0,71438.0,0.07119065]
[1773584419195,0.04856077,71452.0,71438.0,0.0012]
[1773584419395,0.04856077,71452.0,71437.0,0.0002]
[1773584419396,0.04716077,71449.0,71437.0,0.0002]
[1773584420665,0.11714173,71448.0,71437.0,0.0002]
[1773584421066,0.25673406,71448.0,71437.0,0.0002]
[1773584421395,0.11714173,71448.0,71437.0,0.0002]
[1773584421594,0.04716077,71447.0,71437.0,0.0002]
[1773584421759,0.0014,71446.0,71437.0,0.0002]
[1773584422654,0.0699839,71445.0,71437.0,0.0002]
[1773584425281,0.07020097,71450.0,71438.0,0.17102593]
[1773584425282,0.00022001,71450.0,71438.0,0.17102593]
[1773584425502,0.11151721,71458.0,71438.0,0.17102593]
[1773584425503,0.0014,71449.0,71441.0,0.04821425]
[1773584425868,0.001698,71449.0,71441.0,0.04821425]
[1773584426702,0.001698,71449.0,71443.0,0.04821425]
[1773584426911,0.00022001,71466.0,71443.0,0.04821425]
[1773584427113,0.07018471,71465.0,71451.0,0.04821425]
[1773584427319,0.07010831,71467.0,71451.0,0.04821425]
[1773584427517,0.00027001,71478.0,71456.0,0.04821425]
[1773584427742,0.07017591,71474.0,71451.0,0.04821425]
[1773584428115,0.07157591,71474.0,71453.0,0.04821425]
[1773584428334,0.07157591,71474.0,71460.0,0.0587499]
[1773584428513,0.07157591,71474.0,71461.0,0.0014]
[1773584429723,0.07157591,71474.0,71462.0,0.06996725]
[1773584433336,0.07157591,71474.0,71461.0,0.07136775]
[1773584434911,0.07157591,71474.0,71461.0,0.119582]
[1773584435266,0.07017591,71474.0,71461.0,0.119582]
[1773584435489,0.07157591,71474.0,71462.0,0.04821425]
[1773584436299,0.07017591,71474.0,71462.0,0.04821425]
[1773584436526,0.07157591,71474.0,71462.0,0.04821425]
[1773584436668,0.0699559,71474.0,71463.0,0.04821425]
[1773584437684,0.000144,71475.0,71464.0,0.11817954]
[1773584439103,0.000144,71475.0,71465.0,0.0587499]
[1773584439294,0.000144,71475.0,71466.0,0.04821425]
[1773584439469,0.00022001,71480.0,71466.0,0.04821425]
[1773584439688,0.07016796,71482.0,71471.0,0.04821425]
[1773584440072,0.00022001,71482.0,71471.0,0.04821425]
[1773584440278,0.00032716,71482.0,71471.0,0.04821425]
[1773584440698,0.00032716,71482.0,71472.0,0.0014]
[1773584441123,0.00032716,71482.0,71472.0,0.0015456]
[1773584441526,0.00032716,71482.0,71473.0,0.0014]
[1773584441731,0.00032716,71482.0,71474.0,0.0699555]
[1773584442148,0.00032716,71482.0,71474.0,0.0701011]
[1773584442381,0.07016493,71485.0,71475.0,0.04821425]
[1773584442553,0.02016493,71485.0,71475.0,0.04821425]
[1773584443162,0.06994278,71487.0,71475.0,0.04835985]
[1773584443756,0.06994278,71487.0,71476.0,0.1181678]
[1773584444142,0.06994278,71487.0,71476.0,0.1183134]
[1773584444741,0.06994278,71487.0,71476.0,0.1197134]
[1773584445145,0.06994278,71487.0,71476.0,0.1183134]
[1773584445398,0.0014,71488.0,71477.0,0.04821425]
[1773584445740,0.06994278,71487.0,71478.0,0.06995159]
[1773584445941,0.06994278,71487.0,71478.0,0.11816584]
[1773584446696,0.06993312,71497.0,71479.0,0.04821425]
[1773584447264,0.07133312,71497.0,71479.0,0.04821425]
[1773584447867,0.07133312,71497.0,71480.0,0.06994963]
[1773584448071,0.07133312,71497.0,71481.0,0.04821425]
[1773584448319,0.07133312,71497.0,71481.0,0.04961425]
[1773584448454,0.00022001,71487.0,71481.0,0.04961425]
[1773584450617,0.00022001,71487.0,71482.0,0.06994767]
[1773584450827,0.00022001,71487.0,71483.0,0.04821425]
[1773584452010,0.06993792,71492.0,71483.0,0.04821425]
[1773584455366,0.00022001,71495.0,71485.0,0.04719987]
[1773584456146,0.00022001,71492.0,71485.0,0.04719987]
[1773584456449,0.00022001,71495.0,71485.0,0.04719987]
[1773584457606,0.00022001,71495.0,71486.0,0.11714363]
[1773584457801,0.00022001,71495.0,71487.0,0.0014]
[1773584458240,0.00022001,71500.0,71488.0,0.04719987]
[1773584458422,0.00022001,71500.0,71490.0,0.0587499]
[1773584458618,0.00022001,71500.0,71491.0,0.04719987]
[1773584458821,0.07015025,71500.0,71491.0,0.04719987]
[1773584459663,0.07015025,71500.0,71492.0,0.06993789]
[1773584460222,0.07022566,71507.0,71493.0,0.04719987]
[1773584460423,0.07013816,71513.0,71497.0,0.04719987]
[1773584460645,0.07013816,71513.0,71501.0,0.04719987]
[1773584461254,0.0500261,71512.0,71497.0,0.00010713]
[1773584461436,0.0500261,71509.0,71487.0,0.06994278]
[1773584461634,0.0500261,71507.0,71490.0,0.0014]
[1773584461838,0.0500261,71505.0,71483.0,0.06994576]
[1773584462054,0.0500261,71505.0,71485.0,0.0014]
[1773584463033,0.0500261,71505.0,71486.0,0.04719987]
[1773584463852,0.06992615,71504.0,71490.0,0.0587499]
[1773584464791,0.06992615,71504.0,71490.0,0.05866597]
[1773584465346,0.00022001,71500.0,71490.0,0.05866597]
[1773584466098,0.06993104,71499.0,71490.0,0.12860491]
[1773584467910,0.06993104,71499.0,71489.0,0.0699408]
[1773584469082,0.06993104,71499.0,71487.0,0.11714182]
[1773584469083,0.06993104,71499.0,71488.0,0.0699418]
[1773584472417,0.06993104,71499.0,71487.0,0.06994195]
[1773584473659,0.06993104,71499.0,71486.0,0.0701418]
[1773584474794,0.0500261,71498.0,71486.0,0.0715431]
[1773584475127,0.06993104,71499.0,71486.0,0.0715431]
[1773584475549,0.06993104,71499.0,71487.0,0.0014]
[1773584475980,0.16993104,71499.0,71487.0,0.0014]
[1773584480000,0.16993104,71499.0,71487.0,0.07134196]
[1773584481531,0.17015105,71499.0,71487.0,0.07134196]
[1773584483924,0.07015105,71499.0,71487.0,0.07134196]
[1773584486437,0.05013159,71498.0,71478.0,0.0002]
[1773584486772,0.05013159,71498.0,71463.0,0.0002278]
[1773584486773,0.05013159,71488.0,71467.0,0.06996228]
[1773584486979,0.05013159,71486.0,71466.0,0.07016283]
[1773584487180,0.05013159,71486.0,71463.0,0.0016278]
[1773584487559,0.13972541,71486.0,71463.0,0.07159391]
[1773584487756,0.05013159,71485.0,71463.0,0.07159391]
[1773584488276,0.05013159,71483.0,71463.0,0.07170106]
[1773584490183,0.05013159,71481.0,71463.0,0.07170106]
[1773584490349,0.05013159,71479.0,71463.0,0.07170106]
[1773584492302,0.05013159,71477.0,71463.0,0.07170106]
[1773584493157,0.02008318,71478.0,71463.0,0.07170106]
[1773584493357,0.02008318,71478.0,71463.0,0.07190106]
[1773584494005,0.05013159,71477.0,71463.0,0.0002]
[1773584494221,0.06995355,71476.0,71461.0,0.0002]
[1773584494498,0.05013159,71475.0,71461.0,0.0002]
[1773584494707,0.05153159,71474.0,71461.0,0.0002]
[1773584496240,0.06995648,71473.0,71461.0,0.0002]
[1773584496467,0.12008807,71473.0,71461.0,0.0002]
[1773584497431,0.12008807,71473.0,71461.0,4.946e-05]
[1773584501720,0.06995648,71473.0,71460.0,0.06986816]
[1773584507195,0.06995648,71473.0,71460.0,0.07006816]
[1773584507406,0.05013159,71472.0,71459.0,0.0014]
[1773584508425,0.05866597,71470.0,71457.0,0.0014]
[1773584508617,0.05013159,71469.0,71457.0,0.0014]
[1773584508820,0.05153159,71468.0,71457.0,0.0014]
[1773584509639,0.06996236,71467.0,71457.0,0.0014]
[1773584513493,0.06996236,71467.0,71452.0,0.07017703]
[1773584513691,0.04841388,71466.0,71453.0,0.0014]
[1773584513875,0.04841388,71466.0,71453.0,0.00144992]
[1773584514972,0.06996431,71465.0,71454.0,0.06997508]
[1773584516905,0.06996431,71465.0,71453.0,0.00144992]
[1773584517177,0.04841388,71465.0,71453.0,0.0714257]
[1773584517621,0.04841388,71465.0,71454.0,0.0002]
[1773584518725,0.06996431,71466.0,71454.0,0.0002]
[1773584521455,0.06996431,71466.0,71454.0,0.07017479]
[1773584525048,0.06996431,71466.0,71454.0,0.0002]
[1773584525590,0.06996431,71466.0,71454.0,0.0171]
[1773584526586,0.06996431,71466.0,71454.0,0.08707499]
[1773584536764,0.06996431,71466.0,71454.0,0.0171]
[1773584537060,0.06996431,71466.0,71454.0,0.08707463]
[1773584537505,0.05873237,71464.0,71445.0,0.00025]
[1773584537642,0.05873237,71464.0,71446.0,0.0701821]
[1773584537643,0.04841388,71462.0,71446.0,0.0701821]
[1773584537971,0.04841388,71460.0,71446.0,0.0701821]
[1773584538323,0.06997019,71459.0,71446.0,0.0701821]
[1773584538528,0.04841388,71457.0,71445.0,0.07023368]
[1773584538727,0.04841388,71457.0,71446.0,0.0002]
[1773584538961,0.04841388,71457.0,71446.0,0.0701821]
[1773584539944,0.04841388,71457.0,71446.0,0.0002]
[1773584540533,0.04841388,71457.0,71445.0,0.07018368]
[1773584540534,0.04841388,71455.0,71440.0,5e-05]
[1773584540732,0.04848377,71455.0,71440.0,5e-05]
[1773584540936,0.04848377,71455.0,71437.0,0.07019149]
[1773584541396,0.04848377,71455.0,71437.0,0.0002]
[1773584541939,0.05090595,71453.0,71437.0,0.0002]
[1773584542785,0.06997704,71452.0,71437.0,0.0002]
[1773584542989,0.05090595,71451.0,71437.0,0.0002]
[1773584544116,0.06997704,71452.0,71437.0,0.0002]
[1773584544319,0.06997704,71452.0,71437.0,0.07019133]
[1773584544521,0.06997704,71452.0,71440.0,0.05326957]
[1773584544834,0.0014,71451.0,71440.0,0.05873237]
[1773584545052,0.0014,71451.0,71441.0,0.05326957]
[1773584545456,0.0014,71452.0,71441.0,0.05326957]
[1773584545737,6.989e-05,71455.0,71441.0,0.05326957]
[1773584546334,0.0014,71454.0,71441.0,0.05326957]
[1773584546740,0.0014,71453.0,71441.0,0.05326957]
[1773584547144,6.989e-05,71455.0,71441.0,0.12325712]
[1773584547347,0.0014,71453.0,71441.0,0.12325712]
[1773584548133,6.989e-05,71455.0,71441.0,0.12325712]
[1773584548329,0.0014,71453.0,71441.0,0.12325712]
[1773584549136,6.989e-05,71455.0,71441.0,0.12325712]
[1773584549309,0.0014,71453.0,71441.0,0.12325712]
[1773584551555,6.989e-05,71455.0,71441.0,0.12325712]
[1773584551757,6.989e-05,71455.0,71442.0,0.05326957]
[1773584551955,6.989e-05,71455.0,71443.0,0.0014]
[1773584552153,6.989e-05,71455.0,71444.0,0.05326957]
[1773584553664,6.989e-05,71455.0,71445.0,0.0699839]
[1773584556482,6.989e-05,71455.0,71444.0,0.05466957]
[1773584556775,6.989e-05,71455.0,71444.0,0.12465441]
[1773584562177,6.989e-05,71455.0,71444.0,0.12480691]
[1773584562565,6.989e-05,71455.0,71444.0,0.05482207]
[1773584562965,6.989e-05,71455.0,71444.0,0.0015525]
[1773584564474,6.989e-05,71455.0,71444.0,0.0001525]
[1773584565946,0.05097584,71455.0,71444.0,0.0001525]
[1773584566370,0.06997508,71454.0,71444.0,0.0001525]
[1773584566530,0.05090595,71453.0,71444.0,0.0001525]
[1773584568405,0.06997508,71454.0,71444.0,0.0001525]
[1773584569615,0.12088103,71454.0,71444.0,0.0001525]
[1773584571615,0.06997508,71454.0,71444.0,0.0001525]
[1773584571849,0.05200959,71453.0,71444.0,0.0001525]
[1773584572623,0.06997704,71452.0,71444.0,0.0001525]
[1773584573265,0.0014,71451.0,71444.0,0.0001525]
[1773584573407,0.0014,71451.0,71439.0,0.0003319]
[1773584573408,0.05285775,71450.0,71439.0,0.0003319]
[1773584574652,0.05285775,71448.0,71432.0,0.0001319]
[1773584574868,0.05285775,71447.0,71432.0,0.0001319]
[1773584575059,0.05285775,71446.0,71432.0,0.0001319]
[1773584575366,0.05285775,71444.0,71432.0,0.0001319]
[1773584575509,0.0014,71445.0,71432.0,0.07012844]
[1773584575721,0.0014,71445.0,71433.0,0.07019565]
[1773584576555,0.05285775,71444.0,71433.0,0.0002]
[1773584576799,0.06998586,71443.0,71433.0,0.0002]
[1773584577001,0.05285775,71442.0,71433.0,0.0002]
[1773584578491,0.06998586,71443.0,71433.0,0.0002]
[1773584581754,0.06498586,71443.0,71433.0,0.0002]
[1773584583641,0.06997704,71453.0,71432.0,0.0001319]
[1773584583642,0.0001319,71450.0,71432.0,0.12692353]
[1773584583841,0.06997998,71449.0,71433.0,0.05505555]
[1773584584233,0.06963054,71449.0,71433.0,0.05505555]
[1773584584959,0.06963054,71449.0,71434.0,0.06999468]
[1773584585306,0.06963054,71449.0,71436.0,0.05505555]
[1773584587203,0.06928102,71449.0,71437.0,0.06999174]
[1773584587650,0.06928102,71449.0,71437.0,0.12504729]
[1773584589746,0.06893141,71449.0,71438.0,0.05505555]
[1773584590216,0.06893141,71449.0,71437.0,0.06999174]
[1773584591355,0.06893141,71449.0,71436.0,0.0014]
[1773584591557,0.06893141,71449.0,71436.0,0.07139237]
[1773584591760,0.06858172,71449.0,71436.0,0.07139237]
[1773584592425,0.06858172,71449.0,71436.0,0.06999237]
[1773584593265,0.06880173,71449.0,71436.0,0.06999237]
[1773584593740,0.06880173,71449.0,71435.0,0.06999174]
[1773584595624,0.06998194,71447.0,71433.0,0.0002]
[1773584595827,0.05285775,71446.0,71433.0,0.0002]
[1773584596145,0.0014,71445.0,71433.0,0.0002]
[1773584596462,0.05425775,71445.0,71433.0,0.0002]
[1773584599806,0.06998488,71444.0,71433.0,0.0002]
[1773584600802,0.00022001,71449.0,71433.0,0.0002]
[1773584600803,0.11196823,71470.0,71435.0,0.05505555]
[1773584600964,0.11196823,71470.0,71451.0,0.05505555]
[1773584600965,0.0001809,71470.0,71451.0,0.05505555]
[1773584601167,0.0001809,71470.0,71453.0,0.05505555]
[1773584601375,0.07014045,71470.0,71455.0,0.05505555]
[1773584601580,0.0001809,71470.0,71455.0,0.05505555]
[1773584602002,0.0001809,71470.0,71457.0,0.05337429]
[1773584602732,0.00022001,71474.0,71463.0,0.05337429]
[1773584602878,0.06995383,71476.0,71463.0,0.05337429]
[1773584603337,0.07000882,71476.0,71463.0,0.05337429]
[1773584604482,0.07000882,71476.0,71465.0,0.05337429]
[1773584604921,0.07000882,71476.0,71464.0,0.06996529]
[1773584605129,0.07000882,71476.0,71464.0,0.12333958]
[1773584606064,0.07000882,71476.0,71466.0,0.05875772]
[1773584607051,0.0014,71475.0,71467.0,0.06996236]
[1773584607254,0.0014,71475.0,71466.0,0.12872008]
[1773584607454,0.0014,71475.0,71466.0,0.06996236]
[1773584609059,0.0014,71475.0,71465.0,0.06996333]
[1773584609265,0.0014,71475.0,71464.0,0.06996482]
[1773584609612,0.05682349,71474.0,71460.0,0.06996873]
[1773584610513,0.00066003,71473.0,71459.0,0.06996921]
[1773584610715,0.05748352,71473.0,71459.0,0.06996921]
[1773584611915,0.06995746,71472.0,71460.0,0.05875772]
[1773584612362,0.05682349,71471.0,71454.0,0.06997508]
[1773584613946,0.0699604,71469.0,71453.0,0.06997508]
[1773584614250,0.0014,71468.0,71453.0,0.06997508]
[1773584615326,0.05822349,71468.0,71453.0,0.06997508]
[1773584615975,0.05682349,71465.0,71450.0,0.06997802]
[1773584616532,0.05682349,71465.0,71440.0,0.11218201]
[1773584616533,0.05682349,71449.0,71434.0,8.47e-05]
[1773584616731,0.11551591,71440.0,71421.0,0.0002194]
[1773584616953,8.47e-05,71430.0,71421.0,0.0002194]
[1773584617296,0.0629062,71429.0,71421.0,0.01658264]
[1773584617429,0.15410671,71429.0,71421.0,0.01658264]
[1773584617630,0.15410671,71429.0,71421.0,0.01694012]
[1773584617884,0.0014,71429.0,71421.0,0.01694012]
[1773584620191,0.07181029,71429.0,71421.0,0.00035748]
[1773584620388,0.07181029,71429.0,71410.0,5e-05]
[1773584620389,0.05682349,71427.0,71410.0,5e-05]
[1773584620535,0.05682349,71423.0,71415.0,6.989e-05]
[1773584620740,0.0014,71422.0,71415.0,6.989e-05]
[1773584621254,0.00041003,71421.0,71409.0,0.06995617]
[1773584621445,0.00041003,71421.0,71409.0,0.07006335]
[1773584621646,0.00041003,71421.0,71413.0,0.0002]
[1773584621884,0.0014,71420.0,71413.0,0.0002]
[1773584622289,0.0014,71420.0,71414.0,0.07001428]
[1773584622739,0.0714089,71420.0,71410.0,0.07001782]
[1773584622940,0.0714089,71420.0,71409.0,0.07006335]
[1773584622941,0.12823239,71420.0,71409.0,0.00010718]
[1773584623094,0.05682349,71419.0,71409.0,0.00010718]
[1773584623505,0.05723352,71418.0,71409.0,0.00010718]
[1773584624332,0.07001134,71417.0,71409.0,0.00010718]
[1773584625283,0.05682349,71416.0,71406.0,0.0002]
[1773584625473,0.05682349,71410.0,71390.0,5e-05]
[1773584625615,0.05670349,71410.0,71390.0,5e-05]
[1773584625824,0.05822349,71409.0,71390.0,0.07003731]
[1773584626020,0.05863352,71409.0,71387.0,0.07004024]
[1773584626272,0.05682349,71407.0,71387.0,0.07004024]
[1773584626445,0.05682349,71405.0,71385.0,0.07004272]
[1773584627449,0.05682349,71405.0,71384.0,0.13465707]
[1773584628171,0.07043215,71406.0,71384.0,0.08128278]
[1773584628370,0.07002408,71404.0,71391.0,0.07003683]
[1773584629269,0.00041003,71403.0,71392.0,0.05337429]
[1773584629491,0.07142408,71405.0,71395.0,0.05357429]
[1773584629689,0.0014,71404.0,71395.0,0.05357429]
[1773584630190,0.07001624,71412.0,71395.0,0.05357429]
[1773584630364,0.0014,71411.0,71396.0,0.07003193]
[1773584630578,0.0014,71411.0,71397.0,0.05337429]
[1773584630764,0.0014,71410.0,71397.0,0.05337429]
[1773584631388,0.07011941,71416.0,71397.0,0.05337429]
[1773584631389,0.0014,71409.0,71397.0,0.05337429]
[1773584631589,0.0014,71408.0,71397.0,0.05337429]
[1773584631791,0.0014,71407.0,71397.0,0.05337429]
[1773584632082,0.0014,71406.0,71397.0,0.05337429]
[1773584632267,0.00010709,71416.0,71397.0,0.05337429]
[1773584632620,0.0014,71415.0,71399.0,0.06500305]
[1773584632761,0.0701199,71416.0,71399.0,0.06500305]
[1773584632967,0.00010709,71416.0,71399.0,0.06500305]
[1773584633177,0.0014,71415.0,71399.0,0.06500305]
[1773584633725,0.07011988,71416.0,71399.0,0.06500305]
[1773584633908,0.0014,71414.0,71399.0,0.06500305]
[1773584634692,0.00010709,71416.0,71401.0,0.06500305]
[1773584634918,0.0014,71415.0,71401.0,0.06500305]
[1773584636080,0.0014,71414.0,71401.0,0.06500305]
[1773584636690,0.06592467,71424.0,71403.0,0.06500305]
[1773584636928,0.06592467,71422.0,71403.0,0.06511014]
[1773584637135,0.0014,71421.0,71403.0,0.06511014]
[1773584638154,0.06592467,71420.0,71403.0,0.00010709]
[1773584639534,0.07000938,71419.0,71403.0,0.00010709]
[1773584639790,0.13593405,71419.0,71403.0,0.00010709]
[1773584644920,0.13615406,71419.0,71403.0,0.00010709]
[1773584645273,0.00022001,71427.0,71403.0,0.00010709]
[1773584645475,0.06592467,71425.0,71404.0,0.06500305]
[1773584645713,0.07413248,71425.0,71404.0,0.06500305]
[1773584645917,0.06592467,71424.0,71404.0,0.06500305]
[1773584646319,0.06592467,71422.0,71404.0,0.06500305]
[1773584646624,0.18275963,71428.0,71403.0,0.00010709]
[1773584646625,0.00022001,71434.0,71411.0,0.06500305]
[1773584646844,0.0014,71431.0,71412.0,0.07001624]
[1773584646988,0.0014,71431.0,71413.0,0.06500305]
[1773584647185,0.0014,71430.0,71413.0,0.06500305]
[1773584647522,0.0014,71433.0,71421.0,0.06500305]
[1773584647674,0.06998488,71444.0,71421.0,0.06500305]
[1773584647881,0.0014,71443.0,71421.0,0.06500305]
[1773584648113,0.0014,71442.0,71421.0,0.06500305]
[1773584648477,0.07055086,71445.0,71421.0,0.06500305]
[1773584648478,0.00056681,71445.0,71421.0,0.06500305]
[1773584648693,0.0014,71444.0,71421.0,0.06500305]
[1773584648890,0.00056681,71445.0,71423.0,0.06500305]
[1773584648891,0.0014,71443.0,71423.0,0.06500305]
[1773584649091,0.07002739,71452.0,71431.0,0.13175753]
[1773584649293,0.07002739,71452.0,71432.0,0.06500305]
[1773584649548,0.0014,71451.0,71432.0,0.06500305]
[1773584649724,0.07002739,71452.0,71432.0,0.06500305]
[1773584649926,0.0014,71450.0,71432.0,0.06500305]
[1773584650224,0.00175763,71450.0,71432.0,0.06500305]
[1773584650727,0.0014,71449.0,71432.0,0.06500305]
[1773584651394,0.0713802,71449.0,71433.0,0.06999566]
[1773584651597,0.06592467,71448.0,71433.0,0.06999566]
[1773584653619,0.06998194,71447.0,71433.0,0.06999566]
[1773584654021,0.06592467,71446.0,71430.0,0.06999566]
[1773584655669,0.06592467,71444.0,71421.0,0.13500949]
[1773584655845,0.0699839,71445.0,71423.0,0.06500305]
[1773584655846,0.06592467,71442.0,71423.0,0.06500305]
[1773584657687,0.06592467,71440.0,71424.0,0.07000448]
[1773584660187,0.13591445,71439.0,71420.0,0.0700084]
[1773584660504,0.06998978,71439.0,71420.0,0.0700084]
[1773584660704,0.06592467,71438.0,71420.0,0.0700084]
[1773584660905,0.06592467,71436.0,71420.0,0.0700084]
[1773584662312,0.13591799,71436.0,71420.0,0.0700084]
[1773584662715,0.13591799,71436.0,71419.0,0.07000644]
[1773584665284,0.06592467,71436.0,71419.0,0.07000644]
[1773584665487,0.06592467,71436.0,71419.0,0.13815449]
[1773584665738,0.07139272,71437.0,71419.0,0.07000644]
[1773584665944,0.07139272,71437.0,71420.0,0.06814805]
[1773584666691,0.07139272,71437.0,71422.0,0.06814805]